bitfinex-derivatives/quotes_BTCF0:USTF0_20250918
["timestamp","ask_amount","ask_price","bid_price","bid_amount"]
[1758220943768,0.03556,117820.0,117810.0,1.83419895]
[1758220944068,0.03556,117820.0,117810.0,1.06195895]
[1758220944568,0.03556,117820.0,117810.0,1.83419895]
[1758220944870,0.03556,117820.0,117810.0,1.74936715]
[1758220945370,0.03556,117820.0,117810.0,0.97712715]
[1758220945668,0.45592715,117820.0,117810.0,1.74932715]
[1758220946068,0.03556,117820.0,117810.0,1.74932715]
[1758220946267,0.45592715,117820.0,117810.0,1.74932715]
[1758220946570,0.03556,117820.0,117810.0,1.81677162]
[1758220947169,0.03556,117820.0,117810.0,1.04457162]
[1758220947572,0.03556,117820.0,117810.0,1.12940352]
[1758220948070,0.03556,117820.0,117810.0,1.04457162]
[1758220948673,0.03556,117820.0,117810.0,1.81673162]
[1758220948872,0.45592715,117820.0,117810.0,1.81673162]
[1758220949172,0.45592715,117820.0,117810.0,1.04457162]
[1758220949572,0.45592715,117820.0,117810.0,1.81669162]
[1758220949772,0.03556,117820.0,117810.0,1.81669162]
[1758220949975,0.03556,117820.0,117810.0,1.04457162]
[1758220950375,0.03556,117820.0,117810.0,1.81669162]
[1758220950763,0.03556,117820.0,117810.0,1.39632447]
[1758220950969,0.03556,117820.0,117810.0,1.81669162]
[1758220951569,0.01324,117820.0,117810.0,1.81669162]
[1758220953775,0.01324,117820.0,117810.0,1.04457162]
[1758220954074,0.01324,117820.0,117810.0,1.81661162]
[1758220955377,0.01334,117830.0,117810.0,2.32181067]
[1758220955577,0.45693715,117830.0,117820.0,0.8573943]
[1758220955776,0.45683715,117830.0,117820.0,1.4373943]
[1758220957082,0.03647,117830.0,117820.0,1.4373943]
[1758220957283,0.45683715,117830.0,117820.0,1.4373943]
[1758220957881,0.43360715,117830.0,117820.0,2.2094343]
[1758220958376,0.43460715,117830.0,117820.0,2.2094343]
[1758220958581,0.001,117830.0,117820.0,2.2094343]
[1758220958883,0.001,117830.0,117820.0,2.2942589]
[1758220959076,0.01334,117840.0,117820.0,2.2942589]
[1758220959275,0.03657,117840.0,117830.0,0.43702715]
[1758220959573,0.03647,117840.0,117830.0,0.99702715]
[1758220959881,0.43370715,117850.0,117830.0,1.01695121]
[1758220960085,0.45693715,117850.0,117840.0,0.43702715]
[1758220960379,0.45693715,117850.0,117840.0,2.2193943]
[1758220960380,0.03647,117850.0,117840.0,2.2193943]
[1758220960580,0.01324,117850.0,117840.0,0.8573943]
[1758220960780,0.43360715,117850.0,117840.0,1.20902715]
[1758220961181,0.01324,117850.0,117840.0,1.6293943]
[1758220961582,0.03847,117850.0,117840.0,1.6293543]
[1758220962084,0.03747,117850.0,117840.0,1.6293543]
[1758220962480,0.03847,117850.0,117840.0,1.6293543]
[1758220962688,0.45883715,117850.0,117840.0,1.20898715]
[1758220962884,0.45883715,117850.0,117840.0,1.0559096]
[1758220963185,0.03847,117850.0,117840.0,2.24823675]
[1758220963586,0.03847,117850.0,117840.0,1.47627675]
[1758220963979,0.03847,117850.0,117840.0,2.24823675]
[1758220964684,0.03647,117850.0,117840.0,1.47627675]
[1758220965084,0.03647,117850.0,117840.0,2.24819675]
[1758220965486,0.03647,117850.0,117840.0,1.47627675]
[1758220965788,0.03647,117850.0,117840.0,1.63819675]
[1758220966385,0.45683715,117850.0,117840.0,1.2178296]
[1758220966587,0.45683715,117850.0,117840.0,0.4459096]
[1758220966781,0.03647,117850.0,117840.0,0.79742245]
[1758220967083,0.03647,117850.0,117840.0,1.2177896]
[1758220967288,0.48052577,117850.0,117840.0,1.2177896]
[1758220967682,0.48052577,117850.0,117840.0,1.63815675]
[1758220968989,0.06015862,117850.0,117840.0,1.63815675]
[1758220969289,0.48052577,117850.0,117840.0,1.63815675]
[1758220969788,0.48052577,117850.0,117840.0,1.2177896]
[1758220971593,0.48052577,117850.0,117840.0,1.63815675]
[1758220972382,0.48052577,117850.0,117840.0,1.65074134]
[1758220972889,0.06015862,117850.0,117840.0,1.65074134]
[1758220973189,0.48052577,117850.0,117840.0,1.65074134]
[1758220975289,0.45683715,117850.0,117840.0,1.65074134]
[1758220975991,0.48055952,117850.0,117840.0,0.80108459]
[1758220976892,0.48055952,117850.0,117840.0,0.7885]
[1758220977898,0.48055952,117850.0,117840.0,0.01666]
[1758220978582,0.48055952,117850.0,117840.0,0.43702715]
[1758220981187,0.48055952,117850.0,117840.0,1.20882715]
[1758220982197,0.48055952,117850.0,117840.0,1.6291943]
[1758220982385,0.06019237,117850.0,117840.0,2.3140045]
[1758220982590,0.02372237,117850.0,117840.0,2.3244145]
[1758220982991,0.02372237,117850.0,117840.0,2.33687154]
[1758220983192,0.01319,117860.0,117840.0,2.33687154]
[1758220983193,0.43355715,117860.0,117840.0,2.33687154]
[1758220983395,0.47872586,117860.0,117850.0,0.43702715]
[1758220983593,0.47862586,117860.0,117850.0,0.44948419]
[1758220984492,0.48062586,117860.0,117850.0,0.44948419]
[1758220986300,0.47962586,117860.0,117850.0,0.44948419]
[1758220986488,0.48062586,117860.0,117850.0,0.44948419]
[1758220990413,0.06025871,117860.0,117850.0,0.44948419]
[1758220990711,0.48062586,117860.0,117850.0,1.06948419]
[1758220994708,0.48062586,117860.0,117850.0,1.42083704]
[1758220994907,0.48062586,117860.0,117850.0,1.84120419]
[1758220995310,0.45688715,117860.0,117850.0,1.84120419]
[1758220995710,0.45688715,117860.0,117850.0,1.06948419]
[1758220995912,0.45688715,117860.0,117850.0,0.64911704]
[1758220996114,0.8772543,117860.0,117850.0,1.06948419]
[1758220997610,0.45688715,117860.0,117850.0,1.06948419]
[1758220998312,0.03652,117860.0,117850.0,1.06948419]
[1758220998512,0.45688715,117860.0,117850.0,1.06948419]
[1758220999820,0.31646924,117860.0,117850.0,0.92906628]
[1758221002120,0.03652,117860.0,117850.0,0.92906628]
[1758221002622,0.03652,117860.0,117850.0,0.91660924]
[1758221003824,0.31646924,117860.0,117850.0,0.91660924]
[1758221004424,0.03652,117860.0,117850.0,0.91660924]
[1758221004622,0.31646924,117860.0,117850.0,0.91660924]
[1758221005026,0.03652,117860.0,117850.0,0.91660924]
[1758221005320,0.31646924,117860.0,117850.0,0.91660924]
[1758221007226,0.03652,117860.0,117850.0,0.91660924]
[1758221008823,0.03652,117860.0,117850.0,1.68832924]
[1758221009030,0.03652,117860.0,117850.0,0.91660924]
[1758221009325,0.31646924,117860.0,117850.0,1.68828924]
[1758221010331,0.03652,117860.0,117850.0,1.68828924]
[1758221010524,0.31646924,117860.0,117850.0,1.68828924]
[1758221012230,0.34027481,117860.0,117850.0,1.68828924]
[1758221013331,0.34027481,117860.0,117850.0,1.40834]
[1758221013627,0.34027481,117860.0,117850.0,0.63666]
[1758221013931,0.34027481,117860.0,117850.0,1.68856924]
[1758221014131,0.34027481,117860.0,117850.0,0.63666]
[1758221015329,0.31646924,117860.0,117850.0,0.63666]
[1758221015523,0.59641848,117860.0,117850.0,0.63666]
[1758221017423,0.31646924,117860.0,117850.0,0.63666]
[1758221018024,0.03652,117860.0,117850.0,0.91660924]
[1758221018624,0.01509,117860.0,117850.0,0.91660924]
[1758221018936,0.0379,117860.0,117850.0,0.91660924]
[1758221019137,0.01509,117860.0,117850.0,0.91660924]
[1758221019327,0.01509,117860.0,117850.0,1.00141234]
[1758221020136,0.002,117860.0,117850.0,1.00141234]
[1758221020538,0.002,117860.0,117850.0,0.91660924]
[1758221020839,0.002,117860.0,117850.0,1.47141234]
[1758221021333,0.002,117860.0,117850.0,1.53968869]
[1758221024638,0.002,117860.0,117850.0,1.45488559]
[1758221024936,0.01516,117860.0,117850.0,1.45488559]
[1758221025139,0.01416,117860.0,117850.0,1.45488559]
[1758221025637,0.01416,117860.0,117850.0,1.53968869]
[1758221025837,0.001,117860.0,117850.0,1.53968869]
[1758221026038,0.01319,117870.0,117850.0,1.53968869]
[1758221026237,0.036,117870.0,117860.0,1.06892924]
[1758221026438,0.0359,117870.0,117860.0,1.06892924]
[1758221027142,0.0369,117870.0,117860.0,1.06892924]
[1758221027540,0.0379,117870.0,117860.0,0.29660924]
[1758221027740,0.0379,117870.0,117860.0,1.06876924]
[1758221029443,0.0379,117870.0,117860.0,0.29660924]
[1758221030041,0.0379,117870.0,117860.0,1.06860924]
[1758221030241,0.31784924,117870.0,117860.0,1.06860924]
[1758221030545,0.31784924,117870.0,117860.0,0.29660924]
[1758221030747,0.31784924,117870.0,117860.0,0.01666]
[1758221031046,0.31784924,117870.0,117860.0,0.60666]
[1758221033853,0.31784924,117870.0,117860.0,0.88660924]
[1758221034353,0.31784924,117870.0,117860.0,0.60666]
[1758221040257,0.31784924,117870.0,117860.0,0.88660924]
[1758221041849,0.31784924,117870.0,117860.0,0.60666]
[1758221042058,0.31784924,117870.0,117860.0,0.88660924]
[1758221043259,0.31784924,117870.0,117860.0,0.60666]
[1758221043652,0.03611,117860.0,117850.0,0.78834]
[1758221043958,0.31605924,117860.0,117850.0,1.38834]
[1758221044453,0.59600848,117860.0,117850.0,0.61666]
[1758221044654,0.59600848,117860.0,117850.0,1.38834]
[1758221045352,0.31605924,117860.0,117850.0,1.38834]
[1758221050161,0.31605924,117860.0,117850.0,0.6]
[1758221050162,1.12595772,117860.0,117850.0,0.6]
[1758221050363,0.03611,117850.0,117840.0,0.03627782]
[1758221050663,0.31605924,117850.0,117840.0,0.62627782]
[1758221051963,0.31605924,117850.0,117840.0,0.62727782]
[1758221052164,0.31605924,117850.0,117840.0,0.90722706]
[1758221052465,0.31605924,117850.0,117840.0,0.90622706]
[1758221052664,0.03611,117850.0,117840.0,0.90722706]
[1758221052855,0.31605924,117850.0,117840.0,0.90722706]
[1758221053362,0.31605924,117850.0,117840.0,0.90622706]
[1758221054263,0.31605924,117850.0,117840.0,0.62627782]
[1758221055768,0.31605924,117850.0,117840.0,0.90622706]
[1758221057960,0.03611,117850.0,117840.0,0.90622706]
[1758221058162,0.31605924,117850.0,117840.0,0.62627782]
[1758221059463,0.03611,117850.0,117840.0,0.62627782]
[1758221059665,0.31605924,117850.0,117840.0,0.62627782]
[1758221059866,0.45611445,117850.0,117840.0,1.04628227]
[1758221064272,0.03611,117850.0,117840.0,1.04628227]
[1758221064465,0.45611445,117850.0,117840.0,1.04628227]
[1758221065964,0.01404,117860.0,117850.0,0.0848052]
[1758221066169,0.01319,117870.0,117850.0,2.4931941]
[1758221066370,0.03536,117870.0,117860.0,0.8566689]
[1758221066570,0.01309,117870.0,117860.0,1.52114581]
[1758221067771,0.01409,117870.0,117860.0,1.52114581]
[1758221067972,0.01409,117870.0,117860.0,1.83114581]
[1758221068172,0.01409,117870.0,117860.0,1.43634781]
[1758221068374,0.01409,117870.0,117860.0,1.73634781]
[1758221068664,0.43323445,117880.0,117860.0,1.73634781]
[1758221068665,0.01323,117880.0,117860.0,2.07114581]
[1758221068871,0.0354,117880.0,117870.0,1.20838445]
[1758221069073,0.0353,117880.0,117870.0,1.71838445]
[1758221069973,0.0363,117880.0,117870.0,1.71838445]
[1758221070770,0.0373,117880.0,117870.0,1.71838445]
[1758221071968,0.00204,117880.0,117870.0,2.5331798]
[1758221072171,0.00204,117880.0,117870.0,2.13317535]
[1758221072670,0.00204,117880.0,117870.0,2.5531798]
[1758221072878,0.00204,117880.0,117870.0,2.4683889]
[1758221073867,0.00204,117880.0,117870.0,1.25666445]
[1758221074173,0.01489,117880.0,117870.0,1.71830445]
[1758221076172,0.03648,117880.0,117870.0,0.94666445]
[1758221076473,0.03648,117880.0,117870.0,1.71826445]
[1758221076673,0.45648445,117880.0,117870.0,1.71826445]
[1758221076980,0.03648,117880.0,117870.0,1.71826445]
[1758221077178,0.45648445,117880.0,117870.0,1.71826445]
[1758221077668,0.45648445,117880.0,117870.0,0.94666445]
[1758221077870,0.45648445,117880.0,117870.0,1.71826445]
[1758221078471,0.45648445,117880.0,117870.0,0.52666]
[1758221078676,0.45648445,117880.0,117870.0,1.71826445]
[1758221079676,0.45648445,117880.0,117870.0,0.52666]
[1758221079975,0.8764889,117880.0,117870.0,1.29822]
[1758221080174,0.8764889,117880.0,117870.0,1.71822445]
[1758221080368,0.8764889,117880.0,117870.0,0.94666445]
[1758221080678,0.8764889,117880.0,117870.0,1.71822445]
[1758221082675,0.45648445,117880.0,117870.0,1.71822445]
[1758221082880,0.45648445,117880.0,117870.0,0.94666445]
[1758221085275,0.03648,117880.0,117870.0,0.94666445]
[1758221085478,0.45648445,117880.0,117870.0,0.94666445]
[1758221085782,0.03648,117880.0,117870.0,0.94666445]
[1758221085982,0.45648445,117880.0,117870.0,0.94666445]
[1758221089686,0.03648,117880.0,117870.0,0.94666445]
[1758221089887,0.45648445,117880.0,117870.0,0.94666445]
[1758221091285,0.00204,117880.0,117870.0,1.45146]
[1758221092584,0.00204,117880.0,117870.0,1.03145555]
[1758221094490,0.00204,117880.0,117870.0,0.94666445]
[1758221095589,0.00204,117880.0,117870.0,1.03145555]
[1758221095891,0.00204,117880.0,117870.0,1.33145555]
[1758221098990,0.00204,117880.0,117870.0,1.24666445]
[1758221100691,0.00204,117880.0,117870.0,1.33145555]
[1758221100888,0.00204,117880.0,117870.0,1.75146]
[1758221110498,0.00204,117880.0,117870.0,2.00146]
[1758221110699,0.00204,117880.0,117870.0,2.42146445]
[1758221111499,0.44176445,117910.0,117900.0,0.44287445]
[1758221111705,0.47948977,117910.0,117900.0,1.62431445]
[1758221112206,0.45533445,117910.0,117900.0,1.62431445]
[1758221112502,0.45833445,117910.0,117900.0,1.62431445]
[1758221113004,0.48250577,117910.0,117900.0,1.62431445]
[1758221113204,0.45833445,117910.0,117900.0,1.62431445]
[1758221113405,0.46233445,117910.0,117900.0,1.62431445]
[1758221113704,0.04233,117910.0,117900.0,1.62431445]
[1758221113907,0.04233,117910.0,117900.0,0.85287445]
[1758221114105,0.04233,117910.0,117900.0,1.62431445]
[1758221114802,0.05292269,117910.0,117900.0,2.06319928]
[1758221115003,0.05292269,117910.0,117900.0,2.06315928]
[1758221115209,0.02876,117910.0,117900.0,1.29175928]
[1758221115408,0.02876,117910.0,117900.0,1.28134928]
[1758221115409,0.46233445,117910.0,117900.0,1.28134928]
[1758221115704,0.46233445,117910.0,117900.0,2.05274928]
[1758221116405,0.04233,117910.0,117900.0,2.05274928]
[1758221117405,0.04233,117910.0,117900.0,1.28134928]
[1758221117801,0.04233,117910.0,117900.0,2.05274928]
[1758221118111,0.04233,117910.0,117900.0,1.28134928]
[1758221118408,0.04233,117910.0,117900.0,2.05270928]
[1758221119703,0.04233,117910.0,117900.0,1.28134928]
[1758221120008,0.04233,117910.0,117900.0,2.05270928]
[1758221120409,0.04233,117910.0,117900.0,1.28134928]
[1758221120810,0.04233,117910.0,117900.0,2.05270928]
[1758221121211,0.04233,117910.0,117900.0,1.28134928]
[1758221121714,0.04233,117910.0,117900.0,2.05270928]
[1758221122009,0.04233,117910.0,117900.0,0.44134038]
[1758221122210,0.04233,117910.0,117900.0,1.00071438]
[1758221122807,0.572017,117910.0,117900.0,0.43287]
[1758221124110,0.29233,117910.0,117900.0,0.712557]
[1758221124313,0.572017,117910.0,117900.0,0.712557]
[1758221125116,0.29233,117910.0,117900.0,0.712557]
[1758221125815,0.572017,117910.0,117900.0,0.712557]
[1758221126013,0.572017,117910.0,117900.0,1.483877]
[1758221127319,0.572017,117910.0,117900.0,0.712557]
[1758221128615,0.29233,117910.0,117900.0,0.712557]
[1758221131616,0.29233,117910.0,117900.0,0.992244]
[1758221134724,0.007,117910.0,117900.0,1.3874234]
[1758221136726,0.007,117910.0,117900.0,2.1586634]
[1758221139027,0.007,117910.0,117900.0,1.3874234]
[1758221139231,0.007,117910.0,117900.0,2.1586634]
[1758221139431,0.007,117910.0,117900.0,1.3874234]
[1758221139728,0.007,117910.0,117900.0,2.1586634]
[1758221142125,0.007,117910.0,117900.0,1.3874234]
[1758221142330,0.007,117910.0,117900.0,1.0874234]
[1758221142532,0.007,117910.0,117900.0,1.8586234]
[1758221144733,0.007,117910.0,117900.0,1.0874234]
[1758221144927,0.007,117910.0,117900.0,1.8586234]
[1758221147238,0.007,117910.0,117900.0,1.0874234]
[1758221147624,0.007,117910.0,117900.0,1.8585834]
[1758221148131,0.007,117910.0,117900.0,1.0874234]
[1758221148435,0.007,117910.0,117900.0,1.8585834]
[1758221149535,0.007,117910.0,117900.0,1.0874234]
[1758221149735,0.007,117910.0,117900.0,1.8585834]
[1758221149924,0.007,117910.0,117900.0,1.0874234]
[1758221150240,0.007,117910.0,117900.0,1.8585434]
[1758221150936,0.007,117910.0,117900.0,2.1985434]
[1758221152841,0.007,117910.0,117900.0,1.4274234]
[1758221153030,0.02003,117910.0,117900.0,2.1881334]
[1758221153730,0.02003,117910.0,117900.0,1.4170134]
[1758221153926,0.02003,117910.0,117900.0,2.1881334]
[1758221154838,0.007,117910.0,117900.0,2.1881334]
[1758221155336,0.02074,117910.0,117900.0,2.1881334]
[1758221157541,0.02074,117910.0,117900.0,1.0770134]
[1758221157728,0.02074,117910.0,117900.0,1.1870134]
[1758221158038,0.02074,117910.0,117900.0,1.9580934]
[1758221158533,0.02074,117910.0,117900.0,1.3987194]
[1758221158732,0.02074,117910.0,117900.0,1.9580934]
[1758221160839,0.007,117910.0,117900.0,2.1480934]
[1758221162638,0.007,117910.0,117900.0,1.5887194]
[1758221162840,0.007,117910.0,117900.0,2.1480934]
[1758221175650,0.007,117910.0,117900.0,1.3770134]
[1758221175853,0.007,117910.0,117900.0,2.1480534]
[1758221177353,0.007,117910.0,117900.0,2.4277404]
[1758221177555,0.007,117910.0,117900.0,2.3980534]
[1758221177956,0.007,117910.0,117900.0,2.6777404]
[1758221178455,0.007,117910.0,117900.0,1.9067004]
[1758221178959,0.007,117910.0,117900.0,2.6777404]
[1758221179457,0.007,117910.0,117900.0,2.3980534]
[1758221179660,0.007,117910.0,117900.0,1.6270134]
[1758221180258,0.007,117910.0,117900.0,2.3980534]
[1758221180966,0.007,117910.0,117900.0,2.6777404]
[1758221181765,0.007,117910.0,117900.0,1.9067004]
[1758221181960,0.007,117910.0,117900.0,1.6270134]
[1758221182167,0.004,117910.0,117900.0,1.6270134]
[1758221182369,0.006,117910.0,117900.0,1.0676394]
[1758221182568,0.01944,117910.0,117900.0,1.8683664]
[1758221183965,0.005,117910.0,117900.0,2.4277123]
[1758221184461,0.005,117910.0,117900.0,1.6566723]
[1758221184767,0.005,117910.0,117900.0,2.4277123]
[1758221186163,0.005,117910.0,117900.0,1.6566723]
[1758221186364,0.005,117910.0,117900.0,2.4277123]
[1758221189066,0.005,117910.0,117900.0,1.6566723]
[1758221189268,0.005,117910.0,117900.0,2.4277123]
[1758221190568,0.005,117910.0,117900.0,1.6566723]
[1758221190871,0.005,117910.0,117900.0,2.4277123]
[1758221191260,0.005,117910.0,117900.0,3.09722875]
[1758221193869,0.005,117910.0,117900.0,3.20386368]
[1758221194170,0.005,117910.0,117900.0,2.43282368]
[1758221194369,0.005,117910.0,117900.0,3.20382368]
[1758221194965,0.005,117910.0,117900.0,2.95382368]
[1758221195268,0.005,117910.0,117900.0,3.58525368]
[1758221195465,4e-05,117940.0,117930.0,0.084753]
[1758221195668,4e-05,117940.0,117930.0,2.09695381]
[1758221195862,4e-05,117940.0,117930.0,2.86795381]
[1758221196366,0.3602251,117960.0,117940.0,0.00697]
[1758221196563,0.3958251,117960.0,117950.0,0.44164645]
[1758221196764,0.3958251,117960.0,117950.0,1.21264645]
[1758221197169,0.3958251,117960.0,117950.0,0.02213]
[1758221197365,0.81534155,117960.0,117950.0,0.44164645]
[1758221197766,0.01295,117950.0,117940.0,0.79313]
[1758221197970,0.45511645,117950.0,117940.0,0.02213]
[1758221198569,0.45511645,117950.0,117940.0,0.44164645]
[1758221199170,0.45711645,117950.0,117940.0,0.44164645]
[1758221199565,1.1266329,117950.0,117910.0,0.0977125]
[1758221199766,0.45511645,117930.0,117920.0,0.52640665]
[1758221200073,0.0356,117930.0,117920.0,2.4122429]
[1758221200274,0.02265,117930.0,117920.0,2.4122429]
[1758221200475,0.02265,117930.0,117920.0,1.6411629]
[1758221200674,0.02265,117930.0,117920.0,2.4121629]
[1758221200969,0.60511645,117930.0,117920.0,0.80213]
[1758221201177,0.68246645,117930.0,117920.0,1.03164645]
[1758221201563,0.68346645,117930.0,117920.0,1.03164645]
[1758221202469,0.68346645,117930.0,117920.0,0.61213]
[1758221202470,0.70611645,117930.0,117920.0,0.61213]
[1758221202675,0.70611645,117930.0,117920.0,0.02213]
[1758221203271,0.70611645,117930.0,117920.0,0.44164645]
[1758221203671,0.27365,117930.0,117920.0,0.45485645]
[1758221203876,0.27365,117930.0,117920.0,0.8743729]
[1758221204874,0.69316645,117930.0,117920.0,0.45485645]
[1758221205868,0.70611645,117930.0,117920.0,0.45485645]
[1758221208866,0.70611645,117930.0,117920.0,0.44164645]
[1758221210576,0.70611645,117930.0,117920.0,0.03534]
[1758221210782,0.70611645,117930.0,117920.0,0.45485645]
[1758221211272,0.69316645,117930.0,117920.0,0.45485645]
[1758221212676,0.70611645,117930.0,117920.0,0.45485645]
[1758221215578,0.69316645,117930.0,117920.0,0.45485645]
[1758221216178,0.70703645,117930.0,117920.0,0.45485645]
[1758221218384,0.69316645,117930.0,117920.0,0.45485645]
[1758221220380,0.70687645,117930.0,117920.0,0.45485645]
[1758221221480,0.27365,117930.0,117920.0,0.45485645]
[1758221221786,0.69316645,117930.0,117920.0,0.45485645]
[1758221221975,0.27365,117930.0,117920.0,0.45485645]
[1758221222173,0.69316645,117930.0,117920.0,0.45485645]
[1758221222382,0.70687645,117930.0,117920.0,0.45485645]
[1758221222581,0.70687645,117930.0,117920.0,0.03534]
[1758221222881,0.70687645,117930.0,117920.0,0.44164645]
[1758221224386,0.70687645,117930.0,117920.0,0.45475645]
[1758221225380,0.70687645,117930.0,117920.0,0.8742729]
[1758221226289,0.44316645,117930.0,117920.0,0.8742729]
[1758221226479,0.02365,117930.0,117920.0,0.8742729]
[1758221227280,0.02365,117930.0,117920.0,1.4842729]
[1758221227480,0.02365,117930.0,117920.0,0.8742729]
[1758221228375,0.02365,117930.0,117920.0,1.4842729]
[1758221230589,0.02365,117930.0,117920.0,1.3842729]
[1758221230987,0.02365,117930.0,117920.0,1.4690329]
[1758221232390,0.02369,117930.0,117920.0,1.4690329]
[1758221232587,0.02369,117930.0,117920.0,1.3842729]
[1758221233986,0.44320645,117930.0,117920.0,1.3842729]
[1758221236590,0.45691645,117930.0,117920.0,0.54524]
[1758221236790,0.45691645,117930.0,117920.0,1.3842729]
[1758221236991,0.45691645,117930.0,117920.0,0.96475645]
[1758221237188,0.4815824,117930.0,117920.0,0.96475645]
[1758221237386,0.4815824,117930.0,117920.0,1.73567645]
[1758221237897,0.4815824,117930.0,117920.0,1.33567645]
[1758221238297,0.4815824,117930.0,117920.0,1.7551929]
[1758221238595,0.4815824,117930.0,117920.0,0.9842729]
[1758221241397,0.06206595,117930.0,117920.0,1.7551929]
[1758221241595,0.4815824,117930.0,117920.0,0.9842729]
[1758221241793,0.4815824,117930.0,117920.0,0.13213]
[1758221241997,0.4815824,117930.0,117920.0,0.55164645]
[1758221243693,0.4815824,117930.0,117920.0,0.13213]
[1758221243896,0.34170647,117930.0,117920.0,0.41177052]
[1758221244897,0.34170647,117930.0,117920.0,0.13213]
[1758221245101,0.34170647,117930.0,117920.0,0.41177052]
[1758221245494,0.31704052,117930.0,117920.0,0.41177052]
[1758221246304,0.02369,117930.0,117920.0,0.78928094]
[1758221246900,0.02369,117930.0,117920.0,0.70452104]
[1758221247301,0.02369,117930.0,117920.0,0.42488052]
[1758221251296,0.02369,117930.0,117920.0,0.70452104]
[1758221251502,0.02369,117930.0,117920.0,0.78928094]
[1758221255307,0.02369,117930.0,117920.0,0.70452104]
[1758221256404,0.00104,117930.0,117920.0,0.78928144]
[1758221257610,0.0224,117930.0,117920.0,0.78928144]
[1758221258812,0.0224,117930.0,117920.0,0.70452104]
[1758221260216,0.0224,117930.0,117920.0,0.42488052]
[1758221262618,0.0224,117930.0,117920.0,0.70452104]
[1758221263018,0.0224,117930.0,117920.0,0.42488052]
[1758221263223,0.0224,117930.0,117920.0,0.14524]
[1758221263421,0.0224,117930.0,117920.0,0.42488052]
[1758221268424,0.0224,117930.0,117920.0,0.78928164]
[1758221272323,0.0224,117930.0,117920.0,1.11928164]
[1758221273216,0.0224,117930.0,117920.0,0.75488052]
[1758221275525,0.0224,117930.0,117920.0,0.83964112]
[1758221277933,0.0224,117930.0,117920.0,1.11928164]
[1758221281028,0.0224,117930.0,117920.0,1.03452104]
[1758221281732,0.0224,117930.0,117920.0,0.47524]
[1758221281936,0.0224,117930.0,117920.0,0.75488052]
[1758221286141,0.0224,117930.0,117920.0,0.83964092]
[1758221289543,0.0224,117930.0,117920.0,0.75488052]
[1758221290440,0.04705376,117930.0,117920.0,0.75488052]
[1758221291444,0.04705376,117930.0,117920.0,0.83964162]
[1758221294447,0.0224,117930.0,117920.0,0.83964162]
[1758221301660,0.0224,117930.0,117920.0,0.47524]
[1758221301952,0.0224,117930.0,117920.0,0.75488052]
[1758221303854,0.31556052,117930.0,117920.0,0.75488052]
[1758221304153,0.31556052,117930.0,117920.0,0.47524]
[1758221305747,0.0224,117930.0,117920.0,0.89471552]
[1758221305942,0.44187552,117930.0,117920.0,0.89471552]
[1758221312058,0.44187552,117930.0,117920.0,1.31419104]
[1758221318472,0.44187552,117930.0,117920.0,0.89471552]
[1758221328383,0.0224,117930.0,117920.0,0.89471552]
[1758221328587,0.44187552,117930.0,117920.0,0.89471552]
[1758221329285,0.44187552,117930.0,117920.0,1.31419104]
[1758221330685,0.44187552,117930.0,117920.0,1.39895204]
[1758221330881,0.44187552,117930.0,117920.0,1.31419104]
[1758221331684,0.0224,117930.0,117920.0,1.31419104]
[1758221331882,0.44187552,117930.0,117920.0,1.31419104]
[1758221332082,0.44187552,117930.0,117920.0,0.47524]
[1758221332288,0.44187552,117930.0,117920.0,1.31419104]
[1758221332983,0.0224,117930.0,117920.0,1.31419104]
[1758221333181,0.44187552,117930.0,117920.0,1.31419104]
[1758221333987,0.00104,117930.0,117920.0,1.39895184]
[1758221334489,0.02604653,117930.0,117920.0,1.39895184]
[1758221335488,0.00104,117930.0,117920.0,1.39895184]
[1758221339690,0.00104,117930.0,117920.0,2.16955184]
[1758221340596,0.00104,117930.0,117920.0,0.5600008]
[1758221340894,0.00104,117930.0,117920.0,2.16955184]
[1758221342095,0.00104,117930.0,117920.0,1.31419104]
[1758221342484,0.00104,117930.0,117920.0,2.08475104]
[1758221342689,0.00104,117930.0,117920.0,2.16951214]
[1758221343498,0.00104,117930.0,117920.0,1.39895214]
[1758221343698,0.00104,117930.0,117920.0,2.16951214]
[1758221344094,0.00104,117930.0,117920.0,1.31419104]
[1758221344398,0.42051552,117930.0,117920.0,2.16951204]
[1758221344795,0.42051552,117930.0,117920.0,1.2458]
[1758221345099,0.42051552,117930.0,117920.0,2.08475104]
[1758221346597,0.42051552,117930.0,117920.0,1.31419104]
[1758221346795,0.44353552,117930.0,117920.0,0.47524]
[1758221346999,0.44353552,117930.0,117920.0,2.08475104]
[1758221348003,0.42051552,117930.0,117920.0,2.08475104]
[1758221348604,0.00104,117930.0,117920.0,2.08475104]
[1758221353808,0.00104,117930.0,117920.0,2.58898756]
[1758221354308,0.00104,117930.0,117920.0,2.90898756]
[1758221354809,0.00104,117930.0,117920.0,2.13842756]
[1758221355109,0.00104,117930.0,117920.0,2.90898756]
[1758221356204,0.00104,117930.0,117920.0,2.13842756]
[1758221356403,0.00104,117930.0,117920.0,2.90898756]
[1758221357302,0.00104,117930.0,117920.0,2.13842756]
[1758221357499,0.00104,117930.0,117920.0,2.90894756]
[1758221358102,0.00104,117930.0,117920.0,2.13842756]
[1758221358306,0.00104,117930.0,117920.0,2.90894756]
[1758221361304,0.00104,117930.0,117920.0,2.90890756]
[1758221361810,0.10336422,117970.0,117960.0,0.03713]
[1758221361811,0.02312,117970.0,117960.0,0.03713]
[1758221362009,0.02312,117970.0,117960.0,0.45660552]
[1758221362010,0.44249552,117970.0,117960.0,0.45660552]
[1758221363009,0.44249552,117970.0,117960.0,0.03713]
[1758221363311,0.44649552,117970.0,117960.0,0.45660552]
[1758221364413,0.45049552,117970.0,117960.0,0.45660552]
[1758221364612,0.03102,117970.0,117960.0,0.87608104]
[1758221365015,0.45049552,117970.0,117960.0,0.87608104]
[1758221365214,0.45049552,117970.0,117960.0,0.45660552]
[1758221367012,0.46427552,117970.0,117960.0,0.45660552]
[1758221367917,0.32427833,117970.0,117960.0,0.03713]
[1758221368719,0.57427833,117970.0,117960.0,0.03713]
[1758221369014,0.57427833,117970.0,117960.0,0.02313]
[1758221369015,1.62415666,117970.0,117960.0,0.02313]
[1758221369516,1.34467833,117970.0,117960.0,0.02313]
[1758221369711,0.03585,117960.0,117940.0,0.29347833]
[1758221369916,0.31532833,117960.0,117950.0,0.03636]
[1758221370410,0.56532833,117960.0,117950.0,0.03636]
[1758221370917,0.56832833,117960.0,117950.0,0.03636]